Cogmind - Beta 13 @@@ ROGUE MODE // 2024.04.18 @ 14:08:23 Player: Red_Zig Result: Destroyed by P-80 Master with Gamma Rifle Performance ------------- Evolutions (8) 4000 Regions Visited (16) 3200 Robots Destroyed (105) 525 Value Destroyed (3301) 3301 Prototype IDs (31) 620 Alien Tech Used (0) 0 Bonus (1607) 1607 TOTAL SCORE: 13253 Bonus ------- High Alert Combat Kills 235 Follower Combat Kills 14 Entered Garrisons 200 Entered DSFs 1000 Aligned with FarCom 300 Friendly Fire -142 Cogmind --------- Core Integrity 0/1450 Matter 60/300 Energy 91/100 System Corruption 2% Temperature Cool (0) Movement Core (50) Location -2/Research Parts ------- > --- POWER (2) -------- (None) > --- PROPULSION (10) -- (None) > --- UTILITY (8) ------ (None) > --- WEAPON (3) ------- (None) > --- INVENTORY (5) ---- Experimental Power Amplifier Focal Shield Peak State ------------ > --- POWER ------------ Light Angular Momentum Engine Enhanced Fission Core > --- PROPULSION ------- Field Propulsion Drive Field Propulsion Drive Field Propulsion Drive Field Propulsion Drive Nuclear Pulse Array Nuclear Pulse Array > --- UTILITY ---------- Advanced Signal Interpreter Advanced ECM Suite Advanced ECM Suite Improved Phase Shifter Improved Cloaking Device Advanced Shield Generator System Restoration Module > --- WEAPON ----------- Enhanced Gauss Cannon Smartbomb Launcher > --- INVENTORY -------- High-density Centrium Wheel [Rating: 115] Favorites ----------- Power Light Angular Momentum Engine Engine Light Angular Momentum Engine Power Core Light Nuclear Core Propulsion Light Treads Treads Light Treads Leg Aluminum Leg Wheel Armored Huge Wheel Hover Unit Cooled Airjet Flight Unit Field Propulsion Drive Utility High-capacity Storage Unit Device Transmission Jammer Storage High-capacity Storage Unit Processor Transport Network Coupler Hackware Hacking Suite Protection Improved Light Armor Plating Weapon Assault Rifle Energy Gun Advanced Beam Rifle Energy Cannon Heavy Particle Cannon Ballistic Gun Assault Rifle Ballistic Cannon Enhanced Gauss Cannon Launcher Grenade Launcher Special Melee Weapon Datajack Build | -11 -10 -10 -10 -9 -8 -7 -6 -6 -6 -5 -5 -5 -5 -4 -3 -2 ------- Run | Yrd Mat Min Exi Min Mat Fac Fac DSF Gar Fac Was Fac DSF Fac Res Res Slots Evolved 16 | . . . . . 4 2 2 . . 2 . . . 2 2 2 Power 1 | . . . . . . . . . . . . . . 1 . . Propulsion 8 | . . . . . 2 . 1 . . 1 . . . . 2 2 Utility 6 | . . . . . 2 2 1 . . . . . . 1 . . Weapon 1 | . . . . . . . . . . 1 . . . . . . Parts Attached 165 | 6 7 4 . 8 32 13 3 15 15 19 2 . 11 15 7 8 Power 14 | 1 1 1 . 3 2 1 . . 1 1 . . 1 1 . 1 Engine 11 | 1 . 1 . 3 2 1 . . 1 . . . 1 . . 1 Core 3 | . 1 . . . . . . . . 1 . . . 1 . . Reactor . | . . . . . . . . . . . . . . . . . Propulsion 61 | 2 2 2 . 3 11 5 1 6 3 5 1 . 7 5 2 6 Treads 19 | 2 . . . . 7 1 . 6 1 . 1 . . . . 1 Leg 15 | . 2 2 . 2 3 . . . 1 4 . . 1 . . . Wheel 2 | . . . . . . 1 . . . . . . . . . 1 Hover 5 | . . . . 1 . 3 1 . . . . . . . . . Flight 20 | . . . . . 1 . . . 1 1 . . 6 5 2 4 Utility 57 | 1 2 . . . 8 5 2 5 9 10 1 . 2 8 3 1 Device 36 | . . . . . 2 3 1 4 7 7 . . 2 7 3 . Storage 7 | 1 1 . . . 1 . . . 2 1 . . . . . 1 Processor 5 | . 1 . . . . 1 . . . 2 . . . 1 . . Hackware 1 | . . . . . . . 1 . . . . . . . . . Protection 8 | . . . . . 5 1 . 1 . . 1 . . . . . Artifact . | . . . . . . . . . . . . . . . . . Weapon 33 | 2 2 1 . 2 11 2 . 4 2 3 . . 1 1 2 . Energy Gun 8 | 2 . . . . 2 1 . 3 . . . . . . . . Energy Cannon 2 | . . . . . 1 . . . 1 . . . . . . . Ballistic Gun 10 | . 2 1 . 1 3 1 . . 1 1 . . . . . . Ballistic Cannon 5 | . . . . . . . . . . 2 . . 1 . 2 . Launcher 6 | . . . . 1 4 . . . . . . . . 1 . . Special Weapon . | . . . . . . . . . . . . . . . . . Impact Weapon . | . . . . . . . . . . . . . . . . . Slashing Weapon . | . . . . . . . . . . . . . . . . . Piercing Weapon . | . . . . . . . . . . . . . . . . . Special Melee Weapon 2 | . . . . . 1 . . 1 . . . . . . . . Unidentified Prototypes 8 | . . . . . 1 1 . . 1 2 . . . 1 . 2 Parts Lost 66 | . 1 1 . . 18 2 . 2 19 . . . 2 . 3 18 Power 7 | . . 1 . . 1 1 . . 2 . . . . . . 2 Propulsion 26 | . 1 . . . 6 . . . 7 . . . . . 1 11 Utility 21 | . . . . . 6 1 . 1 6 . . . 2 . 1 4 Weapon 12 | . . . . . 5 . . 1 4 . . . . . 1 1 Highest Loss Streak 17 | . 1 1 . . 5 2 . 1 10 . . . 2 . 1 17 To Critical Strikes . | . . . . . . . . . . . . . . . . . Average Slot Usage (%) 84 | . 92 86 82 98 84 89 93 92 81 67 94 82 71 66 71 50 Engine 5 | . 1 . 14 14 7 7 6 6 4 . . . 1 5 4 3 Core 3 | . 12 1 . . . . . . . 2 5 5 4 4 4 3 Treads 8 | . 16 . . . 18 19 . 9 29 . 4 5 . . . . Leg 12 | . 6 28 28 27 12 . . . . 13 17 17 2 . . . Flight 4 | . . . . . . . . . . 5 11 11 22 25 26 20 Device 7 | . . . . . 2 13 20 20 16 22 24 11 17 17 23 13 Storage 9 | . 14 14 14 14 9 7 6 6 7 1 3 . . . . 3 Processor 9 | . 12 14 14 14 6 7 6 6 6 10 5 5 5 5 4 3 Protection 2 | . . . . . 11 9 6 6 4 . 1 5 . . . . Energy Gun 3 | . 6 . . . 2 15 13 13 8 . . . . . . . Ballistic Gun 11 | . 21 27 11 14 5 . . . 1 1 5 5 5 1 . . Launcher 2 | . . . . 12 4 . . . . . . . . 3 3 . Naked Turns 13 | . . . . . . . . . . . . . . . . 13 Heaviest Build 90 | 11 49 49 48 56 79 74 58 65 68 53 90 90 47 41 55 43 Greatest Support 120 | 40 40 29 29 29 83 92 37 120 120 48 48 48 48 41 54 54 Greatest Overweight (x) 6 | . 2 2 1 6 4 2 1 1 1 1 1 1 6 1 1 . Average Overweight (x) . | . . 1 1 1 . . 1 . . . 1 1 . . . . Largest Inventory Capacity 20 | 8 20 20 20 20 20 20 20 20 20 5 5 5 5 5 5 10 Average Capacity 15 | 7 10 20 20 20 20 20 20 20 19 5 5 5 5 5 5 8 Most Carried 20 | 6 12 20 20 20 20 20 20 20 20 5 5 5 5 5 5 10 Average Carried 12 | 3 7 14 18 19 16 18 17 19 16 4 5 5 4 4 3 8 Final Capacity 20 | 8 20 20 20 20 20 20 20 20 5 5 5 5 5 5 5 5 Final Carried 20 | 6 12 18 19 20 20 17 20 19 4 5 5 5 5 5 5 2 Class Distribution -------------------- 68% | Mutant 9% | Scavenger-Mutant 7% | Infiltrator-Sprinter 6% | Skirmisher Dominant Class ---------------- Mutant | -10/Materials Mutant | -10/Mines Mutant | -10/Exiles Mutant | -9/Mines Scavenger-Mutant | -8/Materials Mutant | -7/Factory Mutant | -6/Factory Mutant | -6/DSF Mutant | -6/Garrison Skirmisher | -5/Factory Skirmisher | -5/Waste Tank | -5/Factory Skirmisher | -5/DSF Sprinter | -4/Factory Infiltrator-Sprinter | -3/Research Infiltrator-Sprinter | -2/Research Resources | -11 -10 -10 -10 -9 -8 -7 -6 -6 -6 -5 -5 -5 -5 -4 -3 -2 ----------- Run | Yrd Mat Min Exi Min Mat Fac Fac DSF Gar Fac Was Fac DSF Fac Res Res Matter Collected 3629 | 220 264 980 . 214 855 291 . 207 51 3 272 . 200 . 35 37 Remotely . | . . . . . . . . . . . . . . . . . Salvage Created 3528 | . 693 108 . 145 1188 518 . 494 47 48 . . 219 55 13 . Parts 198 | . 51 4 . 19 66 15 . 27 2 2 . . 7 4 1 . Haulers Intercepted 5 | . 1 . . . 3 1 . . . . . . . . . . Recyclers Shooed 6 | . 3 . . . 1 1 . . . . . . . . . 1 Parts Field Recycled . | . . . . . . . . . . . . . . . . . Retrieved Matter . | . . . . . . . . . . . . . . . . . Parts Self-Destructed . | . . . . . . . . . . . . . . . . . Prevented . | . . . . . . . . . . . . . . . . . Kills | -11 -10 -10 -10 -9 -8 -7 -6 -6 -6 -5 -5 -5 -5 -4 -3 -2 ------- Run | Yrd Mat Min Exi Min Mat Fac Fac DSF Gar Fac Was Fac DSF Fac Res Res Combat Hostiles Destroyed 72 | . 11 2 . 7 29 5 . 9 1 1 . . 3 4 . . Melee 1 | . . . . . . . . . 1 . . . . . . . Guns 38 | . 11 2 . 3 7 5 . 9 . . . . 1 . . . Cannons 7 | . . . . . 4 . . . . 1 . . 2 . . . AOE 26 | . . . . 4 18 . . . . . . . . 4 . . Classes Destroyed 18 | . 8 . . 1 7 1 . . . . . . 1 . . . Worker 6 | . 2 1 . . 3 . . . . . . . . . . . Builder 6 | . . . . . 6 . . . . . . . . . . . Hauler 5 | . 1 . . . 3 1 . . . . . . . . . . Recycler 8 | . 2 . . . 3 3 . . . . . . . . . . Mechanic 1 | . . . . . 1 . . . . . . . . . . . Operator 3 | . 2 . . . . . . . . . . . . . 1 . Drone 1 | . . . . . . . . . . . . . 1 . . . Watcher 4 | . 3 . . . 1 . . . . . . . . . . . Swarmer 21 | . 4 . . 4 3 . . 5 . . . . 1 4 . . Grunt 27 | . 5 2 . 1 16 2 . . 1 . . . . . . . Brawler 3 | . . . . . 3 . . . . . . . . . . . Protector 1 | . . . . . 1 . . . . . . . . . . . Sentry 4 | . . . . 2 2 . . . . . . . . . . . Specialist 8 | . . . . . 2 . . 4 . . . . 2 . . . Hunter 3 | . . . . . 1 2 . . . . . . . . . . Programmer 2 | . . . . . . 1 . . . 1 . . . . . . Heavy 1 | . . . . . 1 . . . . . . . . . . . Subdweller 2 | . 2 . . . . . . . . . . . . . . . Best Kill Streak 9 | . 4 2 . 4 9 5 . 3 1 1 . . 2 4 1 . Combat Bots Only 6 | . 3 2 . 4 6 5 . 3 1 1 . . 2 4 . . Max Kills in Single Turn 4 | . 2 1 . 3 4 1 . 1 1 1 . . 1 4 1 . Gunslinging 1 | . 1 . . . . . . . . . . . . . . . Exploded 4 | . . . . 3 4 . . . . . . . . 4 . . Melee 1 | . . . . . . . . . 1 . . . . . . . Uniques/NPCs Destroyed . | . . . . . . . . . . . . . . . . . Combat | -11 -10 -10 -10 -9 -8 -7 -6 -6 -6 -5 -5 -5 -5 -4 -3 -2 -------- Run | Yrd Mat Min Exi Min Mat Fac Fac DSF Gar Fac Was Fac DSF Fac Res Res Hostile Shots Fired 904 | . 55 18 . 14 122 45 . 96 223 4 . 6 61 8 42 210 Missed 338 | . 15 5 . 6 34 5 . 29 75 3 . 3 17 3 31 112 Damage Taken 10616 | . 481 198 . 120 2089 607 . 910 2903 11 . 29 416 86 239 2527 Core 2836 | . 95 12 . 47 242 137 . 133 670 . . . 22 . 27 1451 Absorbed by Shields 481 | . . . . . . . . 39 . 12 . 30 126 19 22 233 Core Remaining (%) 71 | 100 . . . 38 56 80 . . 5 . . . 97 100 97 . Volleys Fired 273 | . 56 14 . 11 111 28 . 27 4 3 . . 8 1 10 . Largest 3 | . 2 2 . 2 2 2 . 2 2 3 . . 3 1 1 . Hottest 147 | . 90 40 . 55 122 122 . 122 122 147 . . 147 46 57 . Shots Fired 482 | . 110 29 . 12 172 56 . 54 8 9 . . 21 1 10 . Gun 381 | . 110 29 . 9 105 56 . 54 7 3 . . 8 . . . Cannon 60 | . . . . . 31 . . . 1 6 . . 13 . 9 . Launcher 41 | . . . . 3 36 . . . . . . . . 1 1 . Special . | . . . . . . . . . . . . . . . . . Kinetic 246 | . 69 29 . 9 99 . . . 1 9 . . 21 . 9 . Thermal 195 | . 41 . . . 37 56 . 54 7 . . . . . . . Explosive 41 | . . . . 3 36 . . . . . . . . 1 1 . Electromagnetic . | . . . . . . . . . . . . . . . . . Robot Hit Streak 19 | . 8 7 . 5 19 18 . 8 4 3 . . 4 5 12 . Robot Miss Streak 4 | . 4 2 . 1 3 4 . 3 2 1 . . 3 . 1 . Penetration Max . | . . . . . . . . . . . . . . . . . Secondary Targets 5 | . 3 . . . . . . 2 . . . . . . . . Max Gunslinging Chain 1 | . 1 . . . . . . 1 . . . . . . . . Shots Hit Robots 303 | . 59 19 . 8 110 42 . 34 6 5 . . 12 1 7 . Core Hits 184 | . 35 6 . 10 89 14 . 13 2 2 . . 6 4 2 1 Critical Kills . | . . . . . . . . . . . . . . . . . Critical Parts Destroyed 2 | . . . . . 2 . . . . . . . . . . . Critical Strikes 10 | . 1 . . . 3 3 . . . . . . 2 . 1 . Burn 5 | . 1 . . . 1 3 . . . . . . . . . . Destroy 2 | . . . . . 2 . . . . . . . . . . . Blast 3 | . . . . . . . . . . . . . 2 . 1 . Melee Attacks 1 | . . . . . . . . 1 . . . . . . . . Impact . | . . . . . . . . . . . . . . . . . Slashing . | . . . . . . . . . . . . . . . . . Piercing . | . . . . . . . . . . . . . . . . . Sneak Attacks 1 | . . . . . . . . 1 . . . . . . . . Combat Hostiles 1 | . . . . . . . . 1 . . . . . . . . Follow-up Attacks . | . . . . . . . . . . . . . . . . . Damage Inflicted 9489 | . 824 255 . 316 4885 925 . 700 140 192 . . 350 487 399 16 Guns 4146 | . 824 255 . 152 983 925 . 700 93 63 . . 151 . . . Cannons 1129 | . . . . . 500 . . . 25 129 . . 199 . 276 . Explosions 4176 | . . . . 164 3402 . . . . . . . . 487 123 . Melee . | . . . . . . . . . . . . . . . . . Ramming 38 | . . . . . . . . . 22 . . . . . . 16 Kinetic 2699 | . 538 255 . 152 923 . . . 13 192 . . 350 . 276 . Thermal 2576 | . 286 . . . 560 925 . 700 105 . . . . . . . Explosive 4176 | . . . . 164 3402 . . . . . . . . 487 123 . Electromagnetic . | . . . . . . . . . . . . . . . . . Impact . | . . . . . . . . . . . . . . . . . Slashing . | . . . . . . . . . . . . . . . . . Piercing . | . . . . . . . . . . . . . . . . . Highest Corruption 24 | . 4 4 4 4 2 3 . 2 24 . . . 3 . 1 1 Average Corruption 3 | . 2 4 4 4 2 2 . 1 12 . . . 2 . 1 1 Corruption Purged 5 | . . . . . . . . . 2 . . . 3 . . . Corruption Blocked . | . . . . . . . . . . . . . . . . . Effects 97 | . 10 33 9 26 8 2 . 1 6 . . . 2 . . . Message Errors 23 | . 2 5 4 7 2 . . . 2 . . . 1 . . . Matter Fused 18 | . 3 6 1 7 1 . . . . . . . . . . . Heat Flow Errors 14 | . . 8 1 4 . 1 . . . . . . . . . . Energy Discharges 15 | . 3 4 1 3 1 . . 1 2 . . . . . . . Parts Fused 1 | . . 1 . . . . . . . . . . . . . . Data Loss (minor) 14 | . 1 5 1 3 1 1 . . 2 . . . . . . . Data Loss (major) 7 | . . 3 1 1 2 . . . . . . . . . . . Misfires 2 | . . 1 . . 1 . . . . . . . . . . . Alerts 2 | . 1 . . 1 . . . . . . . . . . . . Weapon Failures 1 | . . . . . . . . . . . . . 1 . . . Overload Shots . | . . . . . . . . . . . . . . . . . Overflow Damage 284 | . . . . . 173 . . . . . . . . 29 82 . Projectiles 43 | . . . . . 25 . . . . . . . . . 18 . Explosions 241 | . . . . . 148 . . . . . . . . 29 64 . Melee . | . . . . . . . . . . . . . . . . . Knockbacks 1 | . . . . . . . . . . . . . 1 . . . Impact . | . . . . . . . . . . . . . . . . . Kinetic 1 | . . . . . . . . . . . . . 1 . . . Secondary . | . . . . . . . . . . . . . . . . . Self-Inflicted Damage 441 | . . . . . 434 . . . . . . . . . . 7 Shots 14 | . . . . . 14 . . . . . . . . . . . Rammed 11 | . . . . . . 1 . . 5 . . . . . . 5 Targets Rammed 12 | . . . . . . 1 . . 6 . . . . . . 5 Kicked . | . . . . . . . . . . . . . . . . . Crushed 1 | . . . . . . . . . 1 . . . . . . . Highest Temperature 400 | . 337 176 82 279 261 400 . . 33 153 . . 84 10 130 4 Average Temperature 66 | . 103 67 46 85 71 92 . . 15 77 . . 45 2 40 2 Received Heat Transfer 1848 | . 147 99 . 54 369 27 . 12 1071 . . 12 . 6 9 42 Effects 1 | . . . . 1 . . . . . . . . . . . . Energy Bleed 1 | . . . . 1 . . . . . . . . . . . . Siege Activations . | . . . . . . . . . . . . . . . . . Robots Corrupted . | . . . . . . . . . . . . . . . . . Combat Hostiles . | . . . . . . . . . . . . . . . . . Parts Fried . | . . . . . . . . . . . . . . . . . Impact Corruptions . | . . . . . . . . . . . . . . . . . Robots Melted . | . . . . . . . . . . . . . . . . . Combat Hostiles . | . . . . . . . . . . . . . . . . . Parts Melted 10 | . 3 . . . 1 5 . 1 . . . . . . . . Heat Transferred 5038 | . 819 . . . 889 1850 . 1295 185 . . . . . . . Parts Sabotaged . | . . . . . . . . . . . . . . . . . Parts Stolen . | . . . . . . . . . . . . . . . . . Parts Stripped . | . . . . . . . . . . . . . . . . . Power Chain Reactions . | . . . . . . . . . . . . . . . . . Alert | -11 -10 -10 -10 -9 -8 -7 -6 -6 -6 -5 -5 -5 -5 -4 -3 -2 ------- Run | Yrd Mat Min Exi Min Mat Fac Fac DSF Gar Fac Was Fac DSF Fac Res Res Peak Influence 724 | . 134 45 . 163 724 288 107 269 201 34 11 12 82 303 368 206 Initial 273 | . . . . . . 273 107 74 201 18 11 7 8 42 159 201 Average 148 | . 51 9 . 22 536 225 107 149 170 20 11 7 33 222 303 148 Maximum Alert Level 3 | . . . . . 3 1 . 1 1 . . . . 1 1 1 Low Security (%) 68 | 100 100 100 . 100 11 23 100 80 46 100 100 100 100 22 10 35 Level 1 19 | . . . . . 5 76 . 19 53 . . . . 77 89 64 Level 2 10 | . . . . . 78 . . . . . . . . . . . Level 3 . | . . . . . 4 . . . . . . . . . . . Level 4 . | . . . . . . . . . . . . . . . . . Level 5 . | . . . . . . . . . . . . . . . . . High Security . | . . . . . . . . . . . . . . . . . Max Security . | . . . . . . . . . . . . . . . . . Sterilizations 1 | . . . . . . . . 1 . . . . . . . . Squads Dispatched 21 | . 2 . . 1 6 4 . 2 . . . . 1 . 2 3 Investigation 1 | . . . . 1 . . . . . . . . . . . . Extermination 2 | . . . . . . 1 . . . . . . . . . 1 Reinforcement 14 | . 2 . . . 4 1 . 2 . . . . 1 . 2 2 Assault 2 | . . . . . 2 . . . . . . . . . . . Garrison 2 | . . . . . . 2 . . . . . . . . . . Intercept . | . . . . . . . . . . . . . . . . . Searches Triggered . | . . . . . . . . . . . . . . . . . Construction Impeded 2 | . . . . . 2 . . . . . . . . . . . Haulers Reinforced 1 | . . . . . . 1 . . . . . . . . . . Active Scanning Responses . | . . . . . . . . . . . . . . . . . Cargo Convoy Interrupts . | . . . . . . . . . . . . . . . . . Stealth | -11 -10 -10 -10 -9 -8 -7 -6 -6 -6 -5 -5 -5 -5 -4 -3 -2 --------- Run | Yrd Mat Min Exi Min Mat Fac Fac DSF Gar Fac Was Fac DSF Fac Res Res Distress Signals 11 | . 1 . . . 5 1 . . . . . . . . 2 2 Communications Jammed . | . . . . . . . . . . . . . . . . . Distress Signals . | . . . . . . . . . . . . . . . . . Times Spotted 197 | . 22 2 . 8 45 10 . 12 20 1 . 2 7 8 16 44 Peak Tracking Total 19 | . 7 2 . 3 7 4 . 4 19 1 . 2 5 4 7 19 Tactical Retreats 20 | . . . . 2 4 . . . . . . . . 1 5 8 Traps | -11 -10 -10 -10 -9 -8 -7 -6 -6 -6 -5 -5 -5 -5 -4 -3 -2 ------- Run | Yrd Mat Min Exi Min Mat Fac Fac DSF Gar Fac Was Fac DSF Fac Res Res Traps Triggered 12 | . 4 1 . . . . . 4 . 2 . . 1 . . . Indirectly . | . . . . . . . . . . . . . . . . . Trap Hack Attempts . | . . . . . . . . . . . . . . . . . Triggered . | . . . . . . . . . . . . . . . . . Disarmed . | . . . . . . . . . . . . . . . . . Reprogrammed . | . . . . . . . . . . . . . . . . . Reused . | . . . . . . . . . . . . . . . . . Traps Extracted . | . . . . . . . . . . . . . . . . . Installed . | . . . . . . . . . . . . . . . . . Triggered . | . . . . . . . . . . . . . . . . . Machines | -11 -10 -10 -10 -9 -8 -7 -6 -6 -6 -5 -5 -5 -5 -4 -3 -2 ---------- Run | Yrd Mat Min Exi Min Mat Fac Fac DSF Gar Fac Was Fac DSF Fac Res Res Machines Disabled 20 | . 1 . . 3 7 . . 1 . . . . 2 5 1 . Max in Single Turn 5 | . 1 . . 1 2 . . 1 . . . . 1 5 1 . Machines Repaired . | . . . . . . . . . . . . . . . . . Machines Dismantled . | . . . . . . . . . . . . . . . . . Machines Sabotaged . | . . . . . . . . . . . . . . . . . Overloaded Fab Kills . | . . . . . . . . . . . . . . . . . Hacking | -11 -10 -10 -10 -9 -8 -7 -6 -6 -6 -5 -5 -5 -5 -4 -3 -2 --------- Run | Yrd Mat Min Exi Min Mat Fac Fac DSF Gar Fac Was Fac DSF Fac Res Res Machines Accessed 14 | . 2 1 2 1 . 1 1 . 2 1 . 1 . 1 . 1 Terminals 8 | . 2 . . . . . 1 . 2 1 . 1 . 1 . . Fabricators . | . . . . . . . . . . . . . . . . . Repair Stations . | . . . . . . . . . . . . . . . . . Recycling Units 1 | . . . . . . . . . . . . . . . . 1 Scanalyzers . | . . . . . . . . . . . . . . . . . Garrison Access 1 | . . . . . . 1 . . . . . . . . . . Total Hacks 37 | . 2 1 24 1 . 1 1 . 2 2 . 1 . 1 . 1 Successful 30 | . . 1 24 1 . . 1 . . . . 1 . 1 . 1 Failed 7 | . 2 . . . . 1 . . 2 2 . . . . . . Catastrophic 1 | . . . . . . . . . 1 . . . . . . . Database Lockouts . | . . . . . . . . . . . . . . . . . Manual 4 | . 2 . 1 . . . . . 1 . . . . . . . Terminals 9 | . 2 . . . . . 1 . 2 2 . 1 . 1 . . Fabricators . | . . . . . . . . . . . . . . . . . Repair Stations . | . . . . . . . . . . . . . . . . . Recycling Units 1 | . . . . . . . . . . . . . . . . 1 Scanalyzers . | . . . . . . . . . . . . . . . . . Garrison Access 1 | . . . . . . 1 . . . . . . . . . . Terminal Hacks 29 | . . 1 24 1 . . 1 . . . . 1 . 1 . . Record 23 | . . . 23 . . . . . . . . . . . . . Open Door 2 | . . 1 . 1 . . . . . . . . . . . . Open DSF 3 | . . . . . . . 1 . . . . 1 . 1 . . Derelict Proto ID Bank 1 | . . . 1 . . . . . . . . . . . . . Fabricator Hacks . | . . . . . . . . . . . . . . . . . Repair Station Hacks . | . . . . . . . . . . . . . . . . . Recycling Unit Hacks 1 | . . . . . . . . . . . . . . . . 1 Retrieve Matter 1 | . . . . . . . . . . . . . . . . 1 Scanalyzer . | . . . . . . . . . . . . . . . . . Garrison Access Hacks . | . . . . . . . . . . . . . . . . . Unauthorized Hacks . | . . . . . . . . . . . . . . . . . Terminals . | . . . . . . . . . . . . . . . . . Fabricators . | . . . . . . . . . . . . . . . . . Repair Stations . | . . . . . . . . . . . . . . . . . Recycling Units . | . . . . . . . . . . . . . . . . . Scanalyzers . | . . . . . . . . . . . . . . . . . Garrison Access . | . . . . . . . . . . . . . . . . . Data Cores Recovered . | . . . . . . . . . . . . . . . . . Used . | . . . . . . . . . . . . . . . . . Hacking Detections 5 | . 1 . . . . 1 . . 2 1 . . . . . . Full Trace Events . | . . . . . . . . . . . . . . . . . Feedback Events . | . . . . . . . . . . . . . . . . . Feedback Blocked . | . . . . . . . . . . . . . . . . . Robot Schematics Acquired . | . . . . . . . . . . . . . . . . . Robots Built . | . . . . . . . . . . . . . . . . . Authchips . | . . . . . . . . . . . . . . . . . Time . | . . . . . . . . . . . . . . . . . Total Robot Build Rating . | . . . . . . . . . . . . . . . . . Part Schematics Acquired . | . . . . . . . . . . . . . . . . . Parts Built . | . . . . . . . . . . . . . . . . . Authchips . | . . . . . . . . . . . . . . . . . Time . | . . . . . . . . . . . . . . . . . Total Part Build Rating . | . . . . . . . . . . . . . . . . . Parts Repaired . | . . . . . . . . . . . . . . . . . Time . | . . . . . . . . . . . . . . . . . Parts Recycled . | . . . . . . . . . . . . . . . . . Recycled Matter . | . . . . . . . . . . . . . . . . . Retrieved Matter . | . . . . . . . . . . . . . . . . . Retrieved Components . | . . . . . . . . . . . . . . . . . Parts Scanalyzed . | . . . . . . . . . . . . . . . . . Part Schematics Acquired . | . . . . . . . . . . . . . . . . . Parts Damaged . | . . . . . . . . . . . . . . . . . Bothacking | -11 -10 -10 -10 -9 -8 -7 -6 -6 -6 -5 -5 -5 -5 -4 -3 -2 ------------ Run | Yrd Mat Min Exi Min Mat Fac Fac DSF Gar Fac Was Fac DSF Fac Res Res Used RIF Installer . | . . . . . . . . . . . . . . . . . Robots Hacked . | . . . . . . . . . . . . . . . . . Non-combat . | . . . . . . . . . . . . . . . . . Combat . | . . . . . . . . . . . . . . . . . Robot Hacks Applied . | . . . . . . . . . . . . . . . . . Relay Couplers Released 3 | . . . . . . . . . . 3 . . . . . . Programmers 3 | . . . . . . . . . . 3 . . . . . . Fabnet Peak Effective % . | . . . . . . . . . . . . . . . . . Robots Rewired . | . . . . . . . . . . . . . . . . . Allies Hacked . | . . . . . . . . . . . . . . . . . Hacks Repelled . | . . . . . . . . . . . . . . . . . Allies | -11 -10 -10 -10 -9 -8 -7 -6 -6 -6 -5 -5 -5 -5 -4 -3 -2 -------- Run | Yrd Mat Min Exi Min Mat Fac Fac DSF Gar Fac Was Fac DSF Fac Res Res Total Allies 5 | . . . . 5 . . . . . . . . . . . . Largest Group 4 | . . . . 4 . . . . . . . . . . . . Highest-Rated Group 51 | . . . . 51 . . . . . . . . . . . . Highest-Rated Ally 31 | . . . . 31 . . . . . . . . . . . . Total Orders 5 | . . . . . . . . . . . 3 . 1 1 . . EXPLORE 4 | . . . . . . . . . . . 3 . 1 . . . RETURN 1 | . . . . . . . . . . . . . . 1 . . Ally Attacks 15 | . . . . 15 . . . . . . . . . . . . Total Damage 221 | . . . . 221 . . . . . . . . . . . . Kills 2 | . . . . 2 . . . . . . . . . . . . Allies Corrupted . | . . . . . . . . . . . . . . . . . Allies Melted . | . . . . . . . . . . . . . . . . . Intel | -11 -10 -10 -10 -9 -8 -7 -6 -6 -6 -5 -5 -5 -5 -4 -3 -2 ------- Run | Yrd Mat Min Exi Min Mat Fac Fac DSF Gar Fac Was Fac DSF Fac Res Res Robot Analysis Total . | . . . . . . . . . . . . . . . . . Derelict Logs Recovered 4 | . . 3 . 1 . . . . . . . . . . . . Drone Launches 7 | . . . . . . . . . . . 3 . 4 . . . Drone Recoveries 2 | . . . . . . . . . . . . . 1 1 . . Exploration | -11 -10 -10 -10 -9 -8 -7 -6 -6 -6 -5 -5 -5 -5 -4 -3 -2 ------------- Run | Yrd Mat Min Exi Min Mat Fac Fac DSF Gar Fac Was Fac DSF Fac Res Res Turns Passed 9785 | 97 1655 1288 444 1383 1293 649 60 283 423 541 206 42 103 334 370 614 Spaces Moved 6630 | 54 776 475 233 652 479 346 43 90 253 526 97 23 59 668 888 968 Core 78 | 3 . . . . . . . . . . . . . . . 75 Treads 1464 | 51 608 . . . 316 210 . 18 208 . 53 . . . . . Legs 2063 | . 168 475 233 651 163 . . . . 298 44 23 8 . . . Wheels 251 | . . . . . . 136 43 72 . . . . . . . . Hover 1 | . . . . 1 . . . . . . . . . . . . Flight 2773 | . . . . . . . . . 45 228 . . 51 668 888 893 Fastest Speed 28 | 50 120 185 190 190 160 115 115 115 40 40 190 190 32 32 28 28 Average Speed 118 | 153 173 253 190 190 188 143 115 129 144 92 209 190 71 32 31 35 Slowest Speed 525 | 160 260 260 190 430 400 162 115 240 250 190 225 190 525 114 111 60 Overloaded Moves . | . . . . . . . . . . . . . . . . . Propulsion Burnouts . | . . . . . . . . . . . . . . . . . Robots Hopped 15 | . . . . . . . . . . . . . . 2 7 6 Cave-ins Triggered . | . . . . . . . . . . . . . . . . . Exploration Rate (%) 43 | 4 96 91 61 96 33 10 2 49 38 12 95 1 56 25 29 40 Regions Visited 16 Branch Regions 3 Pre-discovered Areas 4 | . . 2 1 1 . . . . . . . . . . . . Known Exits Taken 5 | . . . . . . 1 1 . . . . 1 . 1 1 . Unknown Exits Taken 6 | 1 1 1 1 1 1 . . . . . . . . . . . Scrap Searched 3 | . . 1 . 2 . . . . . . . . . . . . Spaces Dug 1 | . . . . . . . . . . . . . . . 1 . Terrain Destroyed 351 | . . . . 22 283 . . . . 1 . . 2 22 21 . Melee . | . . . . . . . . . . . . . . . . . Projectile 12 | . . . . . 7 . . . . 1 . . 2 . 2 . AOE 339 | . . . . 22 276 . . . . . . . . 22 19 . Terrain Rammed . | . . . . . . . . . . . . . . . . . Walls Destroyed . | . . . . . . . . . . . . . . . . . Machines Disabled . | . . . . . . . . . . . . . . . . . Actions | -11 -10 -10 -10 -9 -8 -7 -6 -6 -6 -5 -5 -5 -5 -4 -3 -2 --------- Run | Yrd Mat Min Exi Min Mat Fac Fac DSF Gar Fac Was Fac DSF Fac Res Res Total 8090 | 65 976 529 236 786 721 453 54 200 300 568 102 22 103 783 961 1231 Wait 828 | . 124 28 . 102 78 46 2 30 20 10 . . . 86 55 247 Move 6585 | 53 775 474 232 651 478 345 42 89 251 526 96 22 58 663 874 956 Hop 14 | . . . . . . . . . . . . . . 2 6 6 Pick Up 69 | 6 8 7 1 6 11 7 5 1 . 3 . . 1 2 5 6 Fast Attach 84 | 6 3 1 . 2 16 5 1 8 1 18 2 . 7 10 1 3 Attach 56 | . 1 1 . 2 12 6 2 1 12 1 . . 3 3 6 6 Detach 18 | . . . 1 . 4 1 1 . 2 1 . . 2 4 2 . Swap 27 | . 3 2 . 4 5 2 . 6 2 . . . 1 2 . . Drop 81 | . 6 2 2 8 6 12 1 8 2 6 4 . 10 10 2 2 Fire 273 | . 56 14 . 11 111 28 . 27 4 3 . . 8 1 10 . Melee 1 | . . . . . . . . 1 . . . . . . . . Ram 6 | . . . . . . 1 . . . . . . . . . 5 Kick . | . . . . . . . . . . . . . . . . . Crush 6 | . . . . . . . . . 6 . . . . . . . Escape Stasis 42 | . . . . . . . . 29 . . . . 13 . . . Rewire . | . . . . . . . . . . . . . . . . . Trap . | . . . . . . . . . . . . . . . . . Miscellaneous . | . . . . . . . . . . . . . . . . . Route ------- -11/Scrapyard -10/Materials (discovered 4 exits: [*Mat x3] / *Min) -10/Mines (discovered 2 exits: [*Mat] / *Exi) -10/Exiles -9/Mines (discovered 2 exits: [*Mat x2]) -8/Materials -7/Factory (discovered 2 exits: *Fac / Sto) -6/Factory -6/DSF -6/Garrison (discovered 2 exits: *Fac x2) -5/Factory -5/Waste -5/Factory -5/DSF -4/Factory (discovered 2 exits: *Res / *Upp) -3/Research -2/Research History --------- Turn | Location | Event 60 | -11/Scrapyard | Discovered new exit (range 12) 98 | -11/Scrapyard | Entered Materials 299 | -10/Materials | Discovered new exit (range 15) 322 | -10/Materials | Build established: Mutant 419 | -10/Materials | Discovered new exit (range 16) 698 | -10/Materials | Derelicts attacked the area 1114 | -10/Materials | Discovered new exit (range 16) 1388 | -10/Materials | Discovered new exit (range 14) 1753 | -10/Materials | Entered Mines 2185 | -10/Mines | Learned Materials garrison access intel 2189 | -10/Mines | Received a Rocket Launcher from a helpful Derelict 2357 | -10/Mines | Learned location of Zion (-6) 2557 | -10/Mines | Deemed a non-threat by the Exiles lab entrance 2557 | -10/Mines | Discovered new exit (range 5) 2738 | -10/Mines | Learned location of Mines (-9) 2846 | -10/Mines | Discovered new exit (range 10) 2943 | -10/Mines | Met a Derelict who couldn't figure out how to use a Trap Extractor 3041 | -10/Mines | Entered Exiles 3093 | -10/Exiles | Met 8R-AWN 3121 | -10/Exiles | Met EX-HEX 3183 | -10/Exiles | Met EX-BIN 3203 | -10/Exiles | Aligned with FarCom system 3205 | -10/Exiles | Given EX-Vault access code 3249 | -10/Exiles | Opened EX-Vault 3264 | -10/Exiles | Found Cloak of Protection 3309 | -10/Exiles | Warned to stay clear of 0b10 Research branches 3361 | -10/Exiles | Met EX-DEC 3468 | -10/Exiles | Discovered new exit (range 10) 3485 | -10/Exiles | Left Exiles lab with Cloak of Protection 3485 | -10/Exiles | Entered Mines 3870 | -9/Mines | Met a Derelict shopkeep closing up shop 4149 | -9/Mines | Assisted by bots powering up and referring to "LRC-V3" 4342 | -9/Mines | Core integrity fell below 50% 4781 | -9/Mines | Found a damaged Exp. Sensor Array with a note attached 4828 | -9/Mines | Discovered new exit (range 7) 4852 | -9/Mines | Learned location of Storage (-7) 4864 | -9/Mines | Discovered new exit (range 3) 4868 | -9/Mines | Entered Materials 4868 | -8/Materials | Evolved 4 slots: Propulsion x2, Utility x2 4869 | -8/Materials | Loaded intel: 1 garrison access location 5049 | -8/Materials | Lost 5 parts (1n2u2w) 5205 | -8/Materials | Lost 3 parts (1p1n1u) 5268 | -8/Materials | First assault squad dispatched 5359 | -8/Materials | Lost 5 parts (2n2u1w) 5678 | -8/Materials | Build established: Scavenger-Mutant 6029 | -8/Materials | Discovered new exit (range 4) 6161 | -8/Materials | Entered Factory 6161 | -7/Factory | Evolved 2 slots: Utility x2 6162 | -7/Factory | Identified exit to Storage 6559 | -7/Factory | Build established: Mutant 6673 | -7/Factory | Garrison activated, responded to threat 6800 | -7/Factory | Discovered new exit (range 6) 6804 | -7/Factory | Identified exit to Factory 6810 | -7/Factory | Entered another Factory area 6810 | -6/Factory | Evolved 2 slots: Propulsion x1, Utility x1 6815 | -6/Factory | Identified exit to DSF 6870 | -6/Factory | Entered DSF 6962 | -6/DSF | Additional patrols routed to DSF 6971 | -6/DSF | Discovered new exit (range 11) 7139 | -6/DSF | Sterilization system engaged 7152 | -6/DSF | Identified exit to Garrison 7153 | -6/DSF | Entered Garrison 7371 | -6/Garrison | Triggered checkpoint 7437 | -6/Garrison | Triggered checkpoint 7447 | -6/Garrison | Discovered new exit (range 10) 7461 | -6/Garrison | Identified exit to Factory 7462 | -6/Garrison | Attempted to access garrison exit controls, blocked by remote lockdown 7490 | -6/Garrison | System corruption reached 10% 7518 | -6/Garrison | Core integrity fell below 50% 7533 | -6/Garrison | Lost 10 parts (1p3n3u3w) 7541 | -6/Garrison | Triggered checkpoint 7567 | -6/Garrison | Core integrity fell below 20% 7574 | -6/Garrison | Discovered exit to Factory (range 8) 7576 | -6/Garrison | Entered Factory 7576 | -5/Factory | Evolved 2 slots: Propulsion x1, Weapon x1 7593 | -5/Factory | Lost 7 parts (4n2u1w) 8019 | -5/Factory | Build established: Skirmisher 8117 | -5/Factory | Sucked down chute 8117 | -5/Factory | Entered Waste 8117 | -5/Waste | The area was eerily silent 8182 | -5/Waste | Discovered new exit (range 47) 8273 | -5/Waste | Found Damper Plating 8323 | -5/Waste | Entered Factory 8363 | -5/Factory | Identified exit to DSF 8365 | -5/Factory | Entered DSF 8388 | -5/DSF | Additional patrols routed to DSF 8458 | -5/DSF | Discovered new exit (range 11) 8468 | -5/DSF | Identified exit to Factory 8468 | -5/DSF | Entered Factory 8468 | -4/Factory | Accompanied by 1 ally 8468 | -4/Factory | Evolved 2 slots: Power x1, Utility x1 8774 | -4/Factory | Discovered new exit (range 9) 8787 | -4/Factory | Identified exit to Upper Caves 8789 | -4/Factory | Discovered new exit (range 12) 8792 | -4/Factory | Identified exit to Research 8802 | -4/Factory | Entered Research 8802 | -3/Research | Evolved 2 slots: Propulsion x2 9007 | -3/Research | Spotted B-86 Titan 9169 | -3/Research | Discovered new exit (range 7) 9172 | -3/Research | Identified exit to Research 9172 | -3/Research | Entered another Research area 9172 | -2/Research | Evolved 2 slots: Propulsion x2 9773 | -2/Research | Lost 17 parts (2p10n4u1w) 9773 | -2/Research | Core integrity fell below 50% 9783 | -2/Research | Core integrity fell below 20% 9786 | -2/Research | Destroyed by P-80 Master with Gamma Rifle Last Messages --------------- 09723_ U-05 Engineer builds a Door. 09739_ Arm. Medium Treads destroyed. 09742_ Impulse Thruster destroyed. 09743_ K-01 Serf collects debris. 09744_ Slammed into R-10 Processor. 09744_ K-01 Serf collects debris. 09765_ Slammed into K-01 Serf. 09766_ ALERT: Suspicious intruders detected, dispatching Cutter reinforcements to area. 09767_ Slammed into K-01 Serf. 09771_ Slammed into R-10 Processor. 09771_ Destabilizing: System interference. 09771_ Adv. Signal Interpreter temporarily disabled. 09773_ Adv. Signal Interpreter severed. 09782_ Acquired 14 matter. 09783_ Knocked back. 09783_ Identified Hdn. Centrium Wheel. 09783_ Hdn. Centrium Wheel severed. 09785_ Knocked back. Map ----- +----------------------------------------------------+ | ?????????????????????????????????????????????????? | | ?????????????????????????????????????????????????? | | ?????????????????????????????????????????????????? | | ?????????????????????????????????????????????????? | | ?????????????????????????????????????????????????? | | ?????????????????????????????????????????????????? | | ?????????????????????????????????????????????????? | | ?????????????????????????????????????????????????? | | ?????????????????????????????????????????????????? | | ?????????????????????????????????????????????????? | | ???????????????????????? ??????????????????????? | | ???????????????????????? ??????????????????????? | | ???????????????????????? +?????????????????????? | | ???????????????????????# #?????????????????????? | | ???????????????????????# #?????????????????????? | | ??????????????s????????# #?????????????????????? | | ???????????????s???????# #?????????????????????? | | ???????????????s???????# #?????????????????????? | | ????????????????s??????# #?????????????????????? | | ?????????????#?????????# #?????????????????????? | | ?????????????? s???????# #???????????w?????????? | | ??????????###? ???????# #?????????????????????? | | ?????????? T" ??????+ +?????????????????????? | | ?????????? " ?????# #?????????????????????? | | ????????? ###### ###???????????????????? | | ????????????# @ ##########??????????? | | ?????????????## ????????? | | ?????????????# ##???????????? | | ?????????????## % Hc #????????????? | | ?????????????# c sps #????????????? | | ?????????????## cc ss #????????????? | | ??????????????# ## ## ### #????????????? | | ??????????????#??#??# ####?# #????????????? | | ????????????????????# ???#p #????????????? | | ????????????????????# ?# #????????????? | | ??????????????? ????# ## #????????????? | | ??????????????? ????# ## #????????????? | | ??????????????? ????# ## #????????????? | | ??????????????? ????# ## #????????????? | | ???????????#### #???# "" "" ## #????????????? | | ???????????# #???# ""G"" !## #????????????? | | ???????????# #??############# #????????????? | | ???????????# #??# g #????????????? | | ???????????# #??# ########### #????????????? | | ???????????# #??# #?????????# #????????????? | | ???????????# #??# #?????????# #????????????? | | ???????????# ####/#####?????# #????????????? | | ???????????# # #?????# #????????????? | | ???????????# # #?????/ #????????????? | | ???????????# # """ #?????# #????????????? | +----------------------------------------------------+ Best States ------------- Heat Dissipation 64 Coolant Potential 65 Energy Generation 34 Energy Capacity 500 Matter Stores 450 Matter Capacity 600 Sight Range 16 Robot Scan Range 15 Terrain Scan Range 24 Terrain Scan Density 10 ECM Strength 4 Jamming Range 12 Cloak Strength 5 Power Amplification 20 Additional Mass Support 9 Armor Coverage 1600 Resistance: EM 90 Weapon Cycling 20 Phase Shifting 10 Evasion (%) 74 Recoil Reduction 5 Energy Filtering 50 Offensive Hacking 10 Item Schematics ----------------- None Robot Schematics ------------------ None Fabricated ------------ Nothing Alien Tech Used ----------------- None Achievements -------------- Universal Adapter Challenges ------------ None Game ------ Seed ScanExperimentalInterrupter Manual? 0 Play Time 02:12:55 Cumulative 34.8 hours Start 2024.04.18 @ 11:42:13 End 2024.04.18 @ 14:08:23 Sessions 1 Manual Loads 0 Difficulty Rogue Special Mode None Game No. 33 Rogue 21 Adventurer 12 Explorer 0 Win Type - Total 0 Types 0/0/0/0/0/0/0/0/0 Lore% 16 Gallery% 33 Achievement% 25 Wizard Run 0 Options --------- Layout 2 ASCII 0 Keyboard 0 Movement Numpad Keybinds 0 Fullscreen 1 Font 24/Smallcaps Map View 50x44 Zoom Use 9% Tactical HUD 1 Map Filters NONE Filters NONE Steam 1 RUN: 6f4fa2b7-3783-46d5-8b84-e91bb4da597f